lending/lending_fUSD_20250224
["ID","MTS","AMOUNT","RATE_DAILY","PERIOD"]
[354297258,1740399054646,-500.0,0.0001652,2]
[354297259,1740399054655,-500.0,0.0001652,2]
[354297260,1740399054663,-504.13671055,0.0001652,2]
[354297261,1740399054672,-500.0,0.0001652,2]
[354297262,1740399054682,-366.36342692,0.0001652,2]
[354297263,1740399054691,-500.0,0.0001652,2]
[354297264,1740399054700,-500.0,0.0001652,2]
[354297265,1740399054709,-498.31955937,0.0001652,2]
[354297266,1740399054718,-500.0,0.0001652,2]
[354297267,1740399054728,-500.0,0.0001652,2]
[354297268,1740399054737,-500.0,0.0001652,2]
[354297269,1740399054746,-500.0,0.0001652,2]
[354297270,1740399054754,-500.0,0.0001652,2]
[354297271,1740399054763,-502.03586791,0.0001652,2]
[354297272,1740399054772,-500.0,0.0001652,2]
[354297273,1740399054781,-500.0,0.0001652,2]
[354297274,1740399054791,-500.0,0.0001652,2]
[354297275,1740399054799,-500.0,0.0001652,2]
[354297276,1740399054809,-500.0,0.0001652,2]
[354297277,1740399054818,-500.0,0.0001652,2]
[354297278,1740399054827,-500.0,0.0001652,2]
[354297279,1740399054836,-500.0,0.0001652,2]
[354297280,1740399054845,-500.0,0.0001652,2]
[354297281,1740399054855,-501.43933648,0.0001652,2]
[354297282,1740399054864,-567.73666538,0.0001652,2]
[354297283,1740399054873,-500.0,0.0001652,2]
[354297284,1740399054883,-500.0,0.0001652,2]
[354297285,1740399054892,-502.3755358,0.0001652,2]
[354297286,1740399054901,-500.0,0.0001652,2]
[354297287,1740399054911,-312.37552443,0.0001652,2]
[354297288,1740399054920,-500.0,0.0001652,2]
[354297289,1740399054931,-500.0,0.0001652,2]
[354297290,1740399054941,-500.0,0.0001652,2]
[354297291,1740399054950,-500.0,0.0001652,2]
[354297292,1740399054960,-500.0,0.0001652,2]
[354297293,1740399054970,-500.0,0.0001652,2]
[354297294,1740399054979,-500.0,0.0001652,2]
[354297295,1740399054988,-501.78458761,0.0001652,2]
[354297296,1740399054997,-500.0,0.0001652,2]
[354297297,1740399055008,-544.27009845,0.0001652,2]
[354297298,1740399055018,-500.0,0.0001652,2]
[354297299,1740399055027,-500.0,0.0001652,2]
[354297300,1740399055036,-500.0,0.0001652,2]
[354297301,1740399055046,-501.0115519,0.0001652,2]
[354297302,1740399055056,-500.0,0.0001652,2]
[354297303,1740399055066,-500.0,0.0001652,2]
[354297304,1740399055075,-500.0,0.0001652,2]
[354297305,1740399055084,-500.0,0.0001652,2]
[354297306,1740399055093,-500.0,0.0001652,2]
[354297307,1740399055102,-500.0,0.0001652,2]
[354297308,1740399055112,-500.0,0.0001652,2]
[354297309,1740399055121,-500.0,0.0001652,2]
[354297310,1740399055130,-500.0,0.0001652,2]
[354297311,1740399055139,-500.0,0.0001652,2]
[354297312,1740399055149,-504.87583723,0.0001652,2]
[354297313,1740399055159,-500.0,0.0001652,2]
[354297314,1740399055168,-511.42800548,0.0001652,2]
[354297315,1740399055177,-500.0,0.0001652,2]
[354297316,1740399055186,-500.0,0.0001652,2]
[354297317,1740399055195,-500.0,0.0001652,2]
[354297318,1740399055204,-500.0,0.0001652,2]
[354297319,1740399055213,-500.0,0.0001652,2]
[354297320,1740399055223,-500.0,0.0001652,2]
[354297321,1740399055232,-500.0,0.0001652,2]
[354297322,1740399055241,-501.65353154,0.0001652,2]
[354297323,1740399055251,-500.0,0.0001652,2]
[354297324,1740399055260,-500.0,0.0001652,2]
[354297325,1740399055269,-281.51711136,0.0001652,2]
[354297326,1740399055279,-500.0,0.0001652,2]
[354297327,1740399055287,-500.0,0.0001652,2]
[354297328,1740399055297,-500.0,0.0001652,2]
[354297329,1740399055306,-500.0,0.0001652,2]
[354297330,1740399055315,-500.0,0.0001652,2]
[354297331,1740399055324,-500.0,0.0001652,2]
[354297332,1740399055333,-500.0,0.0001652,2]
[354297333,1740399055341,-500.0,0.0001652,2]
[354297334,1740399055351,-500.0,0.0001652,2]
[354297335,1740399055360,-500.0,0.0001652,2]
[354297336,1740399055369,-500.0,0.0001652,2]
[354297337,1740399055378,-1000.0,0.0001652,2]
[354297338,1740399055388,-500.0,0.0001652,2]
[354297339,1740399055398,-500.0,0.0001652,2]
[354297340,1740399055407,-500.0,0.0001652,2]
[354297341,1740399055416,-507.48854594,0.0001652,2]
[354297342,1740399055425,-234.982302,0.0001652,2]
[354297343,1740399055434,-500.0,0.0001652,2]
[354297344,1740399055443,-500.0,0.0001652,2]
[354297345,1740399055452,-500.0,0.0001652,2]
[354297346,1740399055461,-500.0,0.0001652,2]
[354297347,1740399055471,-478.85895716,0.0001652,2]
[354297348,1740399055480,-500.0,0.0001652,2]
[354297349,1740399055489,-500.0,0.0001652,2]
[354297350,1740399055499,-500.0,0.0001652,2]
[354297351,1740399055508,-500.0,0.0001652,2]
[354297352,1740399055518,-500.0,0.0001652,2]
[354297353,1740399055527,-500.0,0.0001652,2]
[354297354,1740399055536,-500.0,0.0001652,2]
[354297355,1740399055545,-500.0,0.0001652,2]
[354297356,1740399055554,-500.0,0.0001652,2]
[354297357,1740399055563,-230.617497,0.0001652,2]
[354297358,1740399055572,-500.0,0.0001652,2]
[354297359,1740399055581,-500.0,0.0001652,2]
[354297360,1740399055590,-500.0,0.0001652,2]
[354297361,1740399055599,-500.0,0.0001652,2]
[354297362,1740399055609,-500.0,0.0001652,2]
[354297363,1740399055618,-500.0,0.0001652,2]
[354297364,1740399055626,-500.0,0.0001652,2]
[354297365,1740399055636,-233.74334734,0.0001652,2]
[354297366,1740399055645,-500.0,0.0001652,2]
[354297367,1740399055654,-500.0,0.0001652,2]
[354297368,1740399055663,-500.0,0.0001652,2]
[354297369,1740399055672,-500.0,0.0001652,2]
[354297370,1740399055681,-500.0,0.0001652,2]
[354297371,1740399055691,-500.0,0.0001652,2]
[354297372,1740399055699,-500.0,0.0001652,2]
[354297373,1740399055709,-500.0,0.0001652,2]
[354297374,1740399055718,-500.0,0.0001652,2]
[354297375,1740399055727,-500.0,0.0001652,2]
[354297376,1740399055736,-500.0,0.0001652,2]
[354297377,1740399055745,-508.6808638,0.0001652,2]
[354297378,1740399055754,-503.20352872,0.0001652,2]
[354297379,1740399055763,-500.0,0.0001652,2]
[354297380,1740399055772,-504.88048986,0.0001652,2]
[354297381,1740399055781,-500.0,0.0001652,2]
[354297382,1740399055790,-500.0,0.0001652,2]
[354297383,1740399055800,-500.0,0.0001652,2]
[354297384,1740399055809,-500.0,0.0001652,2]
[354297385,1740399055818,-500.0,0.0001652,2]
[354297386,1740399055827,-500.0,0.0001652,2]
[354297387,1740399055836,-500.0,0.0001652,2]
[354297388,1740399055845,-500.0,0.0001652,2]
[354297389,1740399055981,-357.73913204,0.0001652,2]
[354297390,1740399055990,-500.0,0.0001652,2]
[354297391,1740399056001,-500.0,0.0001652,2]
[354297392,1740399056011,-500.0,0.0001652,2]
[354297393,1740399056020,-500.0,0.0001652,2]
[354297394,1740399056030,-500.0,0.0001652,2]
[354297395,1740399056039,-500.0,0.0001652,2]
[354297396,1740399056049,-500.0,0.0001652,2]
[354297397,1740399056058,-500.0,0.0001652,2]
[354297398,1740399056067,-500.0,0.0001652,2]
[354297399,1740399056077,-500.0,0.0001652,2]
[354297400,1740399056087,-500.0,0.0001652,2]
[354297401,1740399056097,-223.48321008,0.0001652,2]
[354297402,1740399056106,-500.0,0.0001652,2]
[354297403,1740399056115,-500.0,0.0001652,2]
[354297404,1740399056124,-500.0,0.0001652,2]
[354297405,1740399056133,-500.0,0.0001652,2]
[354297406,1740399056142,-500.0,0.0001652,2]
[354297407,1740399056151,-500.0,0.0001652,2]
[354297408,1740399056161,-439.21527539,0.0001652,2]
[354297409,1740399056170,-500.0,0.0001652,2]
[354297410,1740399056179,-500.0,0.0001652,2]
[354297411,1740399056189,-500.0,0.0001652,2]
[354297412,1740399056199,-399.55293197,0.0001652,2]
[354297413,1740399056208,-500.0,0.0001652,2]
[354297414,1740399056217,-500.0,0.0001652,2]
[354297415,1740399056226,-500.0,0.0001652,2]
[354297416,1740399056235,-500.0,0.0001652,2]
[354297417,1740399056244,-500.0,0.0001652,2]
[354297418,1740399056254,-500.0,0.0001652,2]
[354297419,1740399056263,-500.0,0.0001652,2]
[354297420,1740399056272,-500.0,0.0001652,2]
[354297421,1740399056281,-500.0,0.0001652,2]
[354297422,1740399056290,-512.18375926,0.0001652,2]
[354297423,1740399056299,-500.0,0.0001652,2]
[354297424,1740399056309,-500.0,0.0001652,2]
[354297425,1740399056318,-500.0,0.0001652,2]
[354297426,1740399056328,-500.0,0.0001652,2]
[354297427,1740399056337,-500.0,0.0001652,2]
[354297428,1740399056346,-500.0,0.0001652,2]
[354297429,1740399056356,-506.31207863,0.0001652,2]
[354297430,1740399056366,-500.0,0.0001652,2]
[354297431,1740399056375,-500.0,0.0001652,2]
[354297432,1740399056384,-500.0,0.0001652,2]
[354297433,1740399056394,-500.0,0.0001652,2]
[354297434,1740399056403,-500.0,0.0001652,2]
[354297435,1740399056413,-506.98986837,0.0001652,2]
[354297436,1740399056423,-500.0,0.0001652,2]
[354297437,1740399056432,-150.00527198,0.0001652,2]
[354297438,1740399056441,-500.0,0.0001652,2]
[354297439,1740399056450,-500.0,0.0001652,2]
[354297440,1740399056459,-500.0,0.0001652,2]
[354297441,1740399056469,-500.0,0.0001652,2]
[354297442,1740399056478,-500.0,0.0001652,2]
[354297443,1740399056487,-500.0,0.0001652,2]
[354297444,1740399056496,-500.0,0.0001652,2]
[354297445,1740399056505,-500.0,0.0001652,2]
[354297446,1740399056514,-500.0,0.0001652,2]
[354297447,1740399056524,-500.0,0.0001652,2]
[354297448,1740399056533,-500.0,0.0001652,2]
[354297449,1740399056542,-494.06336356,0.0001652,2]
[354297450,1740399056551,-500.0,0.0001652,2]
[354297451,1740399056561,-500.0,0.0001652,2]
[354297452,1740399056571,-500.0,0.0001652,2]
[354297453,1740399056581,-500.0,0.0001652,2]
[354297454,1740399056591,-502.42489905,0.0001652,2]
[354297455,1740399056600,-334.57557715,0.0001652,2]
[354297456,1740399056608,-500.0,0.0001652,2]
[354297457,1740399056618,-500.0,0.0001652,2]
[354297458,1740399056627,-500.0,0.0001652,2]
[354297459,1740399056636,-516.46382008,0.0001652,2]
[354297460,1740399056645,-500.0,0.0001652,2]
[354297461,1740399056654,-500.0,0.0001652,2]
[354297462,1740399056663,-510.23436838,0.0001652,2]
[354297463,1740399056673,-500.0,0.0001652,2]
[354297464,1740399056682,-500.0,0.0001652,2]
[354297465,1740399056691,-500.0,0.0001652,2]
[354297466,1740399056700,-500.0,0.0001652,2]
[354297467,1740399056710,-500.0,0.0001652,2]
[354297468,1740399056719,-500.0,0.0001652,2]
[354297469,1740399056728,-500.0,0.0001652,2]
[354297470,1740399056737,-500.0,0.0001652,2]
[354297471,1740399056746,-500.0,0.0001652,2]
[354297472,1740399056755,-500.0,0.0001652,2]
[354297473,1740399056764,-500.0,0.0001652,2]
[354297474,1740399056773,-500.0,0.0001652,2]
[354297475,1740399056782,-500.0,0.0001652,2]
[354297476,1740399056791,-500.0,0.0001652,2]
[354297477,1740399056801,-500.0,0.0001652,2]
[354297478,1740399056811,-500.0,0.0001652,2]
[354297479,1740399056820,-500.0,0.0001652,2]
[354297480,1740399056829,-501.3962691,0.0001652,2]
[354297481,1740399056839,-500.0,0.0001652,2]
[354297482,1740399056848,-516.80718631,0.0001652,2]
[354297483,1740399056857,-500.0,0.0001652,2]
[354297484,1740399056867,-500.0,0.0001652,2]
[354297485,1740399056876,-500.0,0.0001652,2]
[354297486,1740399056886,-45.65687608,0.0001652,2]
[354297487,1740399057016,-454.34312392,0.0001652,2]
[354297488,1740399057025,-13.07787658,0.0001652,2]
[354297489,1740399057038,-486.92212342,0.0001652,2]
[354297490,1740399057047,-2.02876964,0.0001652,2]
[354297491,1740399057059,-497.97123036,0.0001652,2]
[354297492,1740399057069,-500.0,0.0001652,2]
[354297493,1740399057079,-500.0,0.0001652,2]
[354297494,1740399057088,-538.16,0.0001652,2]
[354297495,1740399057097,-500.0,0.0001652,2]
[354297496,1740399057107,-508.79318134,0.0001652,2]
[354297497,1740399057116,-500.0,0.0001652,2]
[354297498,1740399057126,-500.0,0.0001652,2]
[354297499,1740399057135,-500.0,0.0001652,2]
[354297500,1740399057145,-500.0,0.0001652,2]
[354297501,1740399057154,-500.0,0.0001652,2]
[354297502,1740399057164,-500.0,0.0001652,2]
[354297503,1740399057173,-500.0,0.0001652,2]
[354297504,1740399057183,-500.0,0.0001652,2]
[354297505,1740399057192,-500.0,0.0001652,2]
[354297506,1740399057204,-500.0,0.0001652,2]
[354297507,1740399057215,-500.0,0.0001652,2]
[354297508,1740399057226,-500.0,0.0001652,2]
[354297509,1740399057235,-500.0,0.0001652,2]
[354297510,1740399057243,-500.0,0.0001652,2]
[354297511,1740399057252,-500.0,0.0001652,2]
[354297512,1740399057262,-500.0,0.0001652,2]
[354297513,1740399057272,-500.0,0.0001652,2]
[354297514,1740399057281,-500.0,0.0001652,2]
[354297515,1740399057290,-500.0,0.0001652,2]
[354297516,1740399057300,-500.0,0.0001652,2]
[354297517,1740399057308,-605.88716981,0.0001652,2]
[354297518,1740399057318,-513.41454895,0.0001652,2]
[354297519,1740399057327,-500.0,0.0001652,2]
[354297520,1740399057336,-500.0,0.0001652,2]
[354297521,1740399057345,-507.64903132,0.0001652,2]
[354297522,1740399057354,-500.0,0.0001652,2]
[354297523,1740399057363,-500.0,0.0001652,2]
[354297524,1740399057372,-500.0,0.0001652,2]
[354297525,1740399057381,-500.0,0.0001652,2]
[354297526,1740399057390,-500.0,0.0001652,2]
[354297527,1740399057400,-500.0,0.0001652,2]
[354297528,1740399057409,-500.0,0.0001652,2]
[354297529,1740399057418,-500.0,0.0001652,2]
[354297530,1740399057428,-500.0,0.0001652,2]
[354297531,1740399057437,-500.0,0.0001652,2]
[354297532,1740399057447,-500.0,0.0001652,2]
[354297533,1740399057456,-500.0,0.0001652,2]
[354297534,1740399057465,-506.45053655,0.0001652,2]
[354297535,1740399057475,-500.0,0.0001652,2]
[354297536,1740399057485,-500.0,0.0001652,2]
[354297537,1740399057494,-500.0,0.0001652,2]
[354297538,1740399057504,-500.0,0.0001652,2]
[354297539,1740399057513,-500.0,0.0001652,2]
[354297540,1740399057522,-500.0,0.0001652,2]
[354297541,1740399057532,-500.0,0.0001652,2]
[354297542,1740399057543,-500.0,0.0001652,2]
[354297543,1740399057553,-500.0,0.0001652,2]
[354297544,1740399057562,-500.0,0.0001652,2]
[354297545,1740399057571,-500.0,0.0001652,2]
[354297546,1740399057580,-500.0,0.0001652,2]
[354297547,1740399057589,-500.0,0.0001652,2]
[354297548,1740399057598,-500.0,0.0001652,2]
[354297549,1740399057607,-500.0,0.0001652,2]
[354297550,1740399057616,-500.0,0.0001652,2]
[354297551,1740399057625,-500.0,0.0001652,2]
[354297552,1740399057634,-312.80396349,0.0001652,2]
[354297553,1740399057643,-500.0,0.0001652,2]
[354297554,1740399057652,-500.0,0.0001652,2]
[354297555,1740399057661,-500.0,0.0001652,2]
[354297556,1740399057670,-500.0,0.0001652,2]
[354297557,1740399057679,-500.0,0.0001652,2]
[354297558,1740399057688,-512.15366655,0.0001652,2]
[354297559,1740399057697,-500.0,0.0001652,2]
[354297560,1740399057706,-648.96,0.0001652,2]
[354297561,1740399057715,-500.0,0.0001652,2]
[354297562,1740399057724,-503.34104007,0.0001652,2]
[354297563,1740399057733,-208.44,0.0001652,2]
[354297564,1740399057742,-500.0,0.0001652,2]
[354297565,1740399057751,-500.0,0.0001652,2]
[354297566,1740399057760,-500.0,0.0001652,2]
[354297567,1740399057770,-500.0,0.0001652,2]
[354297568,1740399057779,-500.0,0.0001652,2]
[354297569,1740399057788,-500.0,0.0001652,2]
[354297570,1740399057798,-500.0,0.0001652,2]
[354297571,1740399057807,-500.0,0.0001652,2]
[354297572,1740399057816,-500.0,0.0001652,2]
[354297573,1740399057825,-500.0,0.0001652,2]
[354297574,1740399057834,-500.0,0.0001652,2]
[354297575,1740399057843,-500.0,0.0001652,2]
[354297576,1740399057852,-500.0,0.0001652,2]
[354297577,1740399057861,-500.0,0.0001652,2]
[354297578,1740399057870,-500.0,0.0001652,2]
[354297579,1740399057879,-500.0,0.0001652,2]
[354297580,1740399057889,-500.0,0.0001652,2]
[354297581,1740399057898,-500.0,0.0001652,2]
[354297582,1740399057907,-500.0,0.0001652,2]
[354297583,1740399057916,-517.26259627,0.0001652,2]
[354297584,1740399057925,-512.29631212,0.0001652,2]
[354297585,1740399057937,-500.0,0.0001652,2]
[354297586,1740399057946,-500.0,0.0001652,2]
[354297587,1740399057955,-500.0,0.0001652,2]
[354297588,1740399057966,-500.0,0.0001652,2]
[354297589,1740399057991,-500.0,0.0001652,2]
[354297590,1740399058001,-500.0,0.0001652,2]
[354297591,1740399058012,-500.0,0.0001652,2]
[354297592,1740399058023,-508.10480891,0.0001652,2]
[354297593,1740399058032,-299.40627694,0.0001652,2]
[354297594,1740399058041,-500.0,0.0001652,2]
[354297595,1740399058050,-500.0,0.0001652,2]
[354297596,1740399058060,-500.0,0.0001652,2]
[354297597,1740399058069,-500.0,0.0001652,2]
[354297598,1740399058079,-500.0,0.0001652,2]
[354297599,1740399058088,-500.0,0.0001652,2]
[354297600,1740399058097,-500.0,0.0001652,2]
[354297601,1740399058106,-500.0,0.0001652,2]
[354297602,1740399058115,-500.0,0.0001652,2]
[354297603,1740399058124,-500.0,0.0001652,2]
[354297604,1740399058133,-500.0,0.0001652,2]
[354297605,1740399058143,-500.0,0.0001652,2]
[354297606,1740399058152,-500.0,0.0001652,2]
[354297607,1740399058161,-500.0,0.0001652,2]
[354297608,1740399058171,-500.0,0.0001652,2]
[354297609,1740399058180,-500.0,0.0001652,2]
[354297610,1740399058188,-500.0,0.0001652,2]
[354297611,1740399058198,-500.0,0.0001652,2]
[354297612,1740399058207,-500.0,0.0001652,2]
[354297613,1740399058216,-500.0,0.0001652,2]
[354297614,1740399058226,-500.0,0.0001652,2]
[354297615,1740399058235,-500.0,0.0001652,2]
[354297616,1740399058244,-500.0,0.0001652,2]
[354297617,1740399058253,-500.0,0.0001652,2]
[354297618,1740399058262,-500.0,0.0001652,2]
[354297619,1740399058271,-500.0,0.0001652,2]
[354297620,1740399058281,-500.0,0.0001652,2]
[354297621,1740399058290,-500.0,0.0001652,2]
[354297622,1740399058299,-500.0,0.0001652,2]
[354297623,1740399058308,-500.0,0.0001652,2]
[354297624,1740399058317,-500.0,0.0001652,2]
[354297625,1740399058326,-500.0,0.0001652,2]
[354297626,1740399058335,-501.4600339,0.0001652,2]
[354297627,1740399058344,-500.0,0.0001652,2]
[354297628,1740399058353,-500.0,0.0001652,2]
[354297629,1740399058362,-500.0,0.0001652,2]
[354297630,1740399058370,-500.0,0.0001652,2]
[354297631,1740399058379,-500.0,0.0001652,2]
[354297632,1740399058389,-500.0,0.0001652,2]
[354297633,1740399058398,-500.0,0.0001652,2]
[354297634,1740399058407,-500.0,0.0001652,2]
[354297635,1740399058416,-500.0,0.0001652,2]
[354297636,1740399058425,-340.04,0.00016531,2]
[354297637,1740399058435,-700.0,0.00016547,2]
[354297638,1740399058444,-500.0,0.00016547,2]
[354297639,1740399058453,-1000.0,0.00016547,2]
[354297640,1740399058463,-502.20592468,0.00016573,2]
[354297641,1740399058473,-150.0,0.00016575,2]
[354297642,1740399058482,-275.44213489,0.00016599,5]
[354297643,1740399058492,-100641.14035867,0.00016599,5]
[354297644,1740399058522,-500.0,0.00016438,2]
[354297645,1740399058532,-247.27987879,0.00016438,2]
[354297646,1740399058543,-252.72012121,0.00016438,2]
[354297647,1740399058552,-1149.77985879,0.00016599,5]
[354297648,1740399058564,-1325.1,0.00016599,5]
[354297649,1740399058575,-1374.2889458,0.00016599,5]
[354297650,1740399058586,-1301.3675696,0.00016599,5]
[354297651,1740399058598,-484.58012204,0.00016599,5]
[354297652,1740399058609,-317.92,0.00016599,5]
[354297653,1740399058619,-2721.4802,0.00016599,5]
[354297654,1740399058752,-2682.72728692,0.00016599,5]
[354297655,1740399058764,-500.0,0.00016599,5]
[354297656,1740399058775,-1179.86648973,0.00016599,5]
[354297657,1740399058785,-3226.16355722,0.00016599,5]
[354297658,1740399058796,-9000.0,0.00016599,5]
[354297659,1740399058807,-350.95671319,0.00016599,5]
[354297660,1740399058817,-900.10574579,0.00016599,5]
[354297661,1740399058828,-7563.91424845,0.00016599,5]
[354297662,1740399058838,-14208.67603151,0.00016599,5]
[354297663,1740399058849,-352.09485957,0.00016599,5]
[354297664,1740399058860,-1246.245015,0.00016599,5]
[354297665,1740399058871,-501.05350463,0.00016599,5]
[354297666,1740399058881,-3069.20028953,0.00016599,5]
[354297667,1740399058892,-1302.1840501,0.00016599,5]
[354297668,1740399058903,-2131.78183786,0.00016599,5]
[354297669,1740399058913,-4736.43772707,0.00016599,5]
[354297670,1740399058945,-980.88,0.00016438,2]
[354297671,1740399058955,-577.42887,0.00016599,5]
[354297672,1740399058967,-558.85127055,0.00016599,5]
[354297673,1740399058978,-5004.8703576,0.00016599,5]
[354297674,1740399058988,-11061.10375098,0.00016599,5]
[354297675,1740399058999,-434.760005,0.00016599,5]
[354297676,1740399059011,-363.21208877,0.00016599,5]
[354297677,1740399059022,-251.97455981,0.00016599,5]
[354297678,1740399059033,-1764.29092704,0.00016599,5]
[354297679,1740399059044,-128907.53839337,0.00016599,5]
[354297680,1740399059055,-483195.81163273,0.00016599,5]
[354297681,1740399059067,-500.0,0.00016599,5]
[354297682,1740399059088,-457.66044224,0.00016599,5]
[354297684,1740399366794,231.96,8.767e-05,2]
[354297686,1740399978015,-100322.52385961,0.0001,2]
[354297687,1740399990808,-1322.52385961,0.0001,2]
[354297688,1740399995754,-322.52385961,9.999e-05,2]
[354297698,1740400231486,-1814.94032214,9.9e-05,2]
[354297699,1740400231496,-11151.05967786,9.999e-05,2]
[354297700,1740400231754,-8055.11199854,9.999e-05,2]
[354297701,1740400231763,-5000.15304721,9.999e-05,2]
[354297702,1740400231772,-500.0,9.999e-05,2]
[354297703,1740400231781,-416.53338349,9.999e-05,2]
[354297704,1740400231789,-44487.77660411,0.0001,2]
[354297705,1740400231800,-40167.0751585,0.0001,2]
[354297711,1740400237306,-2000.942007,0.0001,2]
[354297713,1740400237316,-2067.63408485,0.0001,2]
[354297717,1740400237362,-2227.18239382,0.0001,2]
[354297718,1740400237472,-2655.99318303,0.0001,2]
[354297719,1740400237483,-3231.50064894,0.0001,2]
[354297720,1740400237494,-12073.477402,0.0001,2]
[354297721,1740400237527,-453.63283697,0.0001,2]
[354297722,1740400237583,-2190.80526432,0.0001,2]
[354297723,1740400237594,-40683.27366393,0.0001,2]
[354297724,1740400237605,-726.11508886,0.0001,2]
[354297738,1740400239407,-437.631,0.0001,2]
[354297751,1740400239516,-1648173.43680406,0.0001,2]
[354297753,1740400239525,-168.30167942,0.0001,2]
[354297755,1740400239535,-2949.97174182,0.00012482,2]
[354297757,1740400239543,-587.39028892,0.00012582,2]
[354297759,1740400239552,-1059.17,0.00012682,2]
[354297761,1740400239561,-2949.97174179,0.00012862,2]
[354297762,1740400239570,-207.39781995,0.000129,2]
[354297764,1740400239579,-801.8939326,0.00013,2]
[354297766,1740400239588,-2949.97174179,0.00013242,2]
[354297768,1740400239596,-2482.3222021,0.00013299,2]
[354297770,1740400239605,-275.44213489,0.0001337,5]
[354297772,1740400239614,-1475177.52714921,0.0001337,5]
[354297774,1740400239623,-551676.68180955,0.0001337,2]
[354297776,1740400239634,-1922.42255462,0.0001337,2]
[354297779,1740400239644,-1439.535,0.0001337,2]
[354297781,1740400239655,-34604.24615185,0.0001337,2]
[354297784,1740400239674,-274955.18856375,0.0001337,2]
[354297818,1740400239976,-2100.05512954,0.0001337,2]
[354297821,1740400239999,-4128.97177876,0.0001337,2]
[354297823,1740400240010,-377.63072068,0.0001337,2]
[354297825,1740400240021,-1950.0,0.0001337,2]
[354297827,1740400240031,-466.867531,0.0001337,2]
[354297889,1740400242416,-294.51208672,9.999e-05,2]
[354297890,1740400242425,-306.21331302,0.0001,2]
[354297891,1740400242434,-4771.94997129,0.0001337,2]
[354297892,1740400242443,-181.29664065,0.00013411,2]
[354297893,1740400242452,-223.53077232,0.00013411,2]
[354297894,1740400242461,-200.0,0.00013511,2]
[354297895,1740400242470,-2949.97174179,0.00013621,2]
[354297896,1740400242479,-175.41,0.00013699,2]
[354297897,1740400242489,-500.0,0.00013699,2]
[354297898,1740400242498,-367.26,0.000137,2]
[354297899,1740400242507,-367.26,0.000137,2]
[354297900,1740400242516,-2949.97174179,0.00014001,2]
[354297901,1740400242524,-3027.01053214,0.000141,2]
[354297902,1740400242534,-1000.0,0.00014247,2]
[354297903,1740400242542,-47200.0,0.00014316,2]
[354297904,1740400242551,-2949.97174179,0.00014381,2]
[354297905,1740400242559,-250.0,0.00014426,2]
[354297906,1740400242568,-865.65328513,0.00014675,2]
[354297907,1740400242577,-2949.97174179,0.00014761,2]
[354297908,1740400242586,-5800.0,0.00014775,2]
[354297909,1740400242595,-279.8931836,0.000148,3]
[354297910,1740400242604,-10980.7513032,0.000149,3]
[354297911,1740400242613,-150.0,0.00014918,2]
[354297912,1740400242622,-1059.17,0.00014946,2]
[354297913,1740400242631,-842.58,0.00014988,2]
[354297914,1740400242639,-500.0,0.0001501,2]
[354297915,1740400242648,-865.65328512,0.00015049,2]
[354297916,1740400242657,-23900.0,0.00015056,2]
[354297917,1740400242666,-2949.97174179,0.0001514,2]
[354297918,1740400242674,-1000.0,0.00015149,2]